Cogmind - Beta 15 @@@ ROGUE MODE // 2025.07.25 @ 12:23:36 Player: P9H Result: Destroyed by S-10 Pest with Light Assault Rifle Performance ------------- Evolutions (0) 0 Regions Visited (1) 200 Robots Destroyed (7) 35 Value Destroyed (155) 155 Prototype IDs (0) 0 Alien Tech Used (0) 0 Bonus (0) 0 TOTAL SCORE: 390 Bonus ------- None Cogmind --------- Core Integrity 0/250 Matter 290/300 Energy 230/250 System Corruption 0% Temperature Cool (0) Movement Treading (160) Location -10/Materials Parts ------- > --- POWER (1) -------- Ion Engine > --- PROPULSION (2) --- Light Treads Light Treads > --- UTILITY (2) ------ Large Storage Unit Tractor Beam > --- WEAPON (2) ------- Light Assault Rifle Rocket Launcher > --- INVENTORY (15) --- Light Ion Engine Wheel Flight Unit Heat Sink EM Pulse Gun EM Pulse Gun Light Assault Rifle Peak State ------------ > --- POWER ------------ Ion Engine > --- PROPULSION ------- Light Treads Light Treads > --- UTILITY ---------- Large Storage Unit Tractor Beam > --- WEAPON ----------- Light Assault Rifle Rocket Launcher > --- INVENTORY -------- Light Ion Engine Wheel Flight Unit Heat Sink EM Pulse Gun EM Pulse Gun Light Assault Rifle [Rating: 8] Favorites ----------- Power Ion Engine Engine Ion Engine Propulsion Wheel Treads Light Treads Wheel Wheel Utility Large Storage Unit Device Seismic Detector Storage Large Storage Unit Weapon Medium Laser Energy Gun Medium Laser Ballistic Gun Assault Rifle Launcher Rocket Launcher Build | -11 -10 ------- Run | Yrd Mat Slots Evolved . | . . Power . | . . Propulsion . | . . Utility . | . . Weapon . | . . Parts Attached 15 | 6 9 Power 2 | 1 1 Engine 2 | 1 1 Core . | . . Reactor . | . . Propulsion 4 | 2 2 Treads 2 | . 2 Leg . | . . Wheel 2 | 2 . Hover . | . . Flight . | . . Utility 4 | 1 3 Device 2 | . 2 Storage 2 | 1 1 Processor . | . . Hackware . | . . Protection . | . . Artifact . | . . Weapon 5 | 2 3 Energy Gun 1 | 1 . Energy Cannon . | . . Ballistic Gun 3 | 1 2 Ballistic Cannon . | . . Launcher 1 | . 1 Special Weapon . | . . Impact Weapon . | . . Slashing Weapon . | . . Piercing Weapon . | . . Special Melee Weapon . | . . Unidentified Prototypes . | . . Parts Lost 6 | . 6 Power 1 | . 1 Propulsion 2 | . 2 Utility 1 | . 1 Weapon 2 | . 2 Highest Loss Streak 6 | . 6 To Critical Strikes . | . . Average Backups 4 | 3 5 Power . | . . Propulsion 1 | 1 2 Utility . | . . Weapon 1 | . 1 Tool/Special . | . . Unused Backups 6 | . 6 Power 1 | . 1 Propulsion 2 | . 2 Utility 1 | . 1 Weapon 2 | . 2 Tool/Special . | . . Average Slot Usage (%) 94 | . 94 Engine 13 | . 13 Treads 6 | . 6 Wheel 22 | . 22 Device 10 | . 10 Storage 14 | . 14 Energy Gun 10 | . 10 Ballistic Gun 16 | . 16 Peak Build Rating 8 | 6 8 Average Rating 6 | 4 6 On Entrance 3 | . 6 Naked Turns . | . . Heaviest Build 30 | 14 30 Greatest Support 40 | 26 40 Greatest Overweight (x) 2 | 2 1 Average Overweight (x) . | . . Largest Inventory Capacity 15 | 8 15 Average Capacity 13 | 6 14 Most Carried 8 | 5 8 Average Carried 4 | 3 5 Final Capacity 15 | 8 15 Final Carried 7 | 4 7 Class Distribution -------------------- 100% | Mutant Dominant Class ---------------- Mutant | -10/Materials Resources | -11 -10 ----------- Run | Yrd Mat Matter Collected 366 | 169 197 Remotely 178 | . 178 Salvage Created 206 | . 206 Parts 14 | . 14 Haulers Intercepted . | . . Recyclers Shooed 1 | . 1 Parts Field Recycled . | . . Retrieved Matter . | . . Parts Self-Destructed . | . . Prevented . | . . Kills | -11 -10 ------- Run | Yrd Mat Combat Hostiles Destroyed 7 | . 7 Guns 7 | . 7 Classes Destroyed 2 | . 2 Swarmer 4 | . 4 Grunt 3 | . 3 Best Kill Streak 4 | . 4 Combat Bots Only 4 | . 4 Max Kills in Single Turn 1 | . 1 Gunslinging . | . . Exploded . | . . Melee . | . . Uniques/NPCs Destroyed . | . . Combat | -11 -10 -------- Run | Yrd Mat Hostile Shots Fired 100 | . 100 Missed 18 | . 18 Hits 82 | . 82 Projectile 82 | . 82 Critical Strikes 1 | . 1 Damage Taken 882 | . 882 Core 253 | . 253 Absorbed by Shields . | . . Core Remaining (%) 100 | 100 . Volleys Fired 27 | . 27 Largest 2 | . 2 Hottest 70 | . 70 Shots Fired 51 | . 51 Gun 51 | . 51 Cannon . | . . Launcher . | . . Special . | . . Kinetic 36 | . 36 Thermal 15 | . 15 Explosive . | . . Electromagnetic . | . . Robot Hit Streak 9 | . 9 Robot Miss Streak 5 | . 5 Penetration Max . | . . Secondary Targets 3 | . 3 Max Gunslinging Chain 1 | . 1 Shots Hit Robots 28 | . 28 Core Hits 13 | . 13 Critical Kills . | . . Critical Parts Destroyed . | . . Critical Strikes . | . . Melee Attacks . | . . Impact . | . . Slashing . | . . Piercing . | . . Sneak Attacks . | . . Combat Hostiles . | . . Follow-up Attacks . | . . Damage Inflicted 293 | . 293 Guns 293 | . 293 Cannons . | . . Explosions . | . . Melee . | . . Ramming . | . . Kinetic 231 | . 231 Thermal 62 | . 62 Explosive . | . . Electromagnetic . | . . Impact . | . . Slashing . | . . Piercing . | . . Highest Corruption . | . . Average Corruption . | . . Corruption Purged . | . . Corruption Blocked . | . . Overload Shots . | . . Overflow Damage . | . . Projectiles . | . . Explosions . | . . Melee . | . . Knockbacks . | . . Impact . | . . Kinetic . | . . Secondary . | . . Self-Inflicted Damage . | . . Shots . | . . Rammed . | . . Targets Rammed . | . . Kicked . | . . Crushed . | . . Highest Temperature 132 | . 132 Average Temperature 67 | . 67 Received Heat Transfer 336 | . 336 Siege Activations . | . . Martial Activations . | . . Shielding Activations . | . . Robots Disrupted . | . . Combat Hostiles . | . . Robots Corrupted . | . . Combat Hostiles . | . . Parts Fried . | . . Impact Corruptions . | . . Robots Melted . | . . Combat Hostiles . | . . Parts Melted . | . . Heat Transferred 185 | . 185 Parts Sabotaged . | . . Parts Stolen . | . . Parts Stripped . | . . Power Chain Reactions . | . . Alert | -11 -10 ------- Run | Yrd Mat Maximum Alert Level . | . . Low Security (%) 100 | 100 100 Level 1 . | . . Level 2 . | . . Level 3 . | . . Level 4 . | . . Level 5 . | . . High Security . | . . Max Security . | . . Peak Influence 74 | . 74 Initial . | . . Average 11 | . 12 Influence Increases 200 | . 200 Destroy 0b10 Robot/C 140 | . 140 Destroy Leader 40 | . 40 Successful Hack 5 | . 5 Lose Combat Pursuer 15 | . 15 Influence Decreases 126 | . 126 Time Decay 72 | . 72 Lost Part 54 | . 54 Squads Dispatched 1 | . 1 Investigation 1 | . 1 Extermination . | . . Reinforcement . | . . Assault . | . . Garrison . | . . Intercept . | . . Searches Triggered . | . . Construction Impeded . | . . Haulers Reinforced . | . . Active Scanning Responses . | . . Cargo Convoy Interrupts . | . . Stealth | -11 -10 --------- Run | Yrd Mat Distress Signals . | . . Communications Jammed . | . . Distress Signals . | . . Times Spotted 15 | . 15 Peak Tracking Total 6 | . 6 Tactical Retreats 1 | . 1 Traps | -11 -10 ------- Run | Yrd Mat Traps Triggered 1 | . 1 Indirectly . | . . Trap Hack Attempts . | . . Triggered . | . . Disarmed . | . . Reprogrammed . | . . Reused . | . . Traps Extracted . | . . Installed . | . . Triggered . | . . Machines | -11 -10 ---------- Run | Yrd Mat Machines Disabled . | . . Max in Single Turn . | . . Machines Repaired . | . . Machines Dismantled . | . . Machines Sabotaged . | . . Overloaded Fab Kills . | . . Hacking | -11 -10 --------- Run | Yrd Mat Machines Accessed 1 | . 1 Terminals 1 | . 1 Fabricators . | . . Repair Stations . | . . Recycling Units . | . . Scanalyzers . | . . Garrison Access . | . . Total Hacks 1 | . 1 Successful 1 | . 1 Failed . | . . Catastrophic . | . . Database Lockouts . | . . Manual . | . . Terminals 1 | . 1 Fabricators . | . . Repair Stations . | . . Recycling Units . | . . Scanalyzers . | . . Garrison Access . | . . Terminal Hacks 1 | . 1 Zone Layout 1 | . 1 Fabricator Hacks . | . . Repair Station Hacks . | . . Recycling Unit Hacks . | . . Scanalyzer . | . . Garrison Access Hacks . | . . Unauthorized Hacks . | . . Terminals . | . . Fabricators . | . . Repair Stations . | . . Recycling Units . | . . Scanalyzers . | . . Garrison Access . | . . Data Cores Recovered . | . . Used . | . . Hacking Detections . | . . Full Trace Events . | . . Feedback Events . | . . Feedback Blocked . | . . Robot Schematics Acquired . | . . Robots Built . | . . Authchips . | . . Time . | . . Total Robot Build Rating . | . . Part Schematics Acquired . | . . Parts Built . | . . Authchips . | . . Time . | . . Total Part Build Rating . | . . Parts Repaired . | . . Time . | . . Parts Recycled . | . . Recycled Matter . | . . Retrieved Matter . | . . Retrieved Components . | . . Parts Scanalyzed . | . . Part Schematics Acquired . | . . Parts Damaged . | . . Bothacking | -11 -10 ------------ Run | Yrd Mat Used RIF Installer . | . . Robots Hacked . | . . Non-combat . | . . Combat . | . . Robot Hacks Applied . | . . Relay Couplers Released . | . . Fabnet Peak Effective % . | . . Robots Rewired . | . . Allies Hacked . | . . Hacks Repelled . | . . Allies | -11 -10 -------- Run | Yrd Mat Total Allies . | . . Largest Group . | . . Highest-Rated Group . | . . Highest-Rated Ally . | . . Total Orders . | . . Ally Attacks . | . . Total Damage . | . . Kills . | . . Allies Corrupted . | . . Allies Melted . | . . Intel | -11 -10 ------- Run | Yrd Mat Active Infowar (turns) 297 | . 297 Seismic 297 | . 297 Robot Analysis Total . | . . Derelict Logs Recovered . | . . Drone Launches . | . . Drone Recoveries . | . . Exploration | -11 -10 ------------- Run | Yrd Mat Turns Passed 679 | 64 615 Spaces Moved 382 | 60 322 Core 20 | 20 . Treads 60 | . 60 Legs . | . . Wheels 302 | 40 262 Hover . | . . Flight . | . . Fastest Speed 50 | 50 90 Average Speed 107 | 81 112 Slowest Speed 160 | 150 160 Overloaded Moves . | . . Propulsion Burnouts . | . . Robots Hopped . | . . Potential Cave-ins . | . . Cave-ins Triggered . | . . Exploration Rate (%) 27 | 3 51 Regions Visited 1 Branch Regions . Pre-discovered Areas . | . . Known Exits Taken . | . . Unknown Exits Taken 1 | 1 . Scrap Searched . | . . Spaces Dug . | . . Terrain Destroyed . | . . Melee . | . . Projectile . | . . AOE . | . . Terrain Rammed . | . . Walls Destroyed . | . . Machines Disabled . | . . Actions | -11 -10 --------- Run | Yrd Mat Total 602 | 73 529 Wait 159 | . 159 Move 381 | 59 322 Hop . | . . Pick Up 19 | 8 11 Fast Attach 2 | 2 . Attach 12 | 4 8 Detach . | . . Swap 1 | . 1 Drop 1 | . 1 Fire 27 | . 27 Melee . | . . Ram . | . . Kick . | . . Crush . | . . Escape Stasis . | . . Rewire . | . . Trap . | . . Miscellaneous . | . . Route ------- -11/Scrapyard -10/Materials (discovered 3 exits: [*Mat] / [*Min x2]) History --------- Turn | Location | Event 18 | -11/Scrapyard | Discovered new exit (range 16) 65 | -11/Scrapyard | Entered Materials 312 | -10/Materials | Build established: Mutant 410 | -10/Materials | Discovered new exit (range 7) 464 | -10/Materials | Discovered new exit (range 9) 535 | -10/Materials | Core integrity fell below 50% 548 | -10/Materials | Core integrity fell below 20% 592 | -10/Materials | Lost 6 parts (1p2n1u2w) 643 | -10/Materials | Discovered new exit (range 17) 680 | -10/Materials | Destroyed by S-10 Pest with Light Assault Rifle Last Messages --------------- 00569_ K-01 Serf collects debris. 00570_ Acquired Wheel. 00572_ T-07 Excavator is excavating. 00572_ K-01 Serf collects debris. 00578_ Acquired Lgt. Ion Engine. 00594_ K-01 Serf collects debris. 00596_ U-05 Engineer lays Concrete. 00596_ T-07 Excavator is excavating. 00604_ U-05 Engineer lays Concrete. 00643_ Connecting with Terminal... 00643_ Current location identified: Materials 00643_ EXIT=FOUND >>Layout(Zone) Retrieving Zone 3U layout... Downloaded map data. 00669_ S-10 Pest destroyed. 00669_ Switching to secondary target: S-10 Pest. 00670_ Acquired 6 matter. 00677_ K-01 Serf collects debris. 00678_ Acquired Rocket Launcher. Map ----- +----------------------------------------------------+ | | | | | | | | | | | | | | | | | | | ??????????????????????#######?????########?????? | | ??????????????????????# #?#???# !! #????? | | ????????????????####### "T" ### ?## !! #????? | | ????????????????# ## """ ## #### !! #????? | | ????????????????# ## # ### #????? | | ????????????????# #####+## ## #????? | | ??????????#####?# #### ###+########+#####+# | | ??????????#"""### + = | | ??????????" "## # ## ############ %[ # | | ??????????" ""# #*### ##??????????# # | | ?????????? # #%#?# #?????#######+##+## / | | ?????????? < # #g#?# #?????# ## %%## # | | ?????????? ######s#?# #?????# < ## ## # | | ?????????? #????#s#?# #?????# ## """ ## # | | ?????????? ##?#### ### #?????# ## """ ## # | | ??????????# ##??# #/####### ## """ ##+# | | ??????????# #???#==!!@]# ## ## ## | | ??????????# #???#==!!]]# ## ##! !## | | ??????????????????######## ?????# ###+#### | | ?????????????????????????? ?????# # | | ?????????????????????????? ?????# + | | ????????????????????????????????# # | | ????????????????????????????????# ###### # | | ????????????????????????????????#######????# # | | ???????????????????????????????????????????# # | | ???????????????????????????????????????????# ### | | ???????????????????????????????????????????#+#?? | | ???????????????????????????????????????????????? | | ?????????????????????????????????????????????### | | ?????????????????????????????????????????????+ | | ?????????????????????????????????????????????# | | ?????????????????????????????????????????????? | | ??????????????????????????????????????????????? | | ???????????????????????????????????????????????? | | ???????????????????????????????????????????????? | | ??????????????????????????????????????????###### | | ??????????????????????????????????????????# | | ??????????????????????????????????????????# | | ??????????????????????????????????????????# | | ??????????????????????????????????????????# | | ??????????????????????????????????????????# | +----------------------------------------------------+ Best States ------------- Heat Dissipation 25 Energy Generation 10 Energy Capacity 250 Matter Stores 300 Matter Capacity 300 Sight Range 16 Terrain Scan Density 10 Evasion (%) 50 Recoil Reduction 2 Item Schematics ----------------- None Robot Schematics ------------------ None Fabricated ------------ Nothing Repaired ---------- Nothing Alien Tech Used ----------------- None Achievements -------------- None Challenges ------------ None Game ------ Seed CoilGravjetBattery Manual? 0 Play Time 00:07:32 Cumulative 43.7 hours Start 2025.07.25 @ 12:17:50 End 2025.07.25 @ 12:23:36 Sessions 1 Manual Loads 0 Difficulty Rogue Special Mode None Game No. 88 Rogue 88 Adventurer 0 Explorer 0 Win Type - Total 0 Types 0/0/0/0/0/0/0/0/0/0 Lore% 8 Gallery% 28 Achievement% 25 Wizard Run 0 Options --------- Layout 1 ASCII 0 Keyboard 0 Movement Mouse Keybinds 0 Fullscreen 2 Font 32/SmallcapsGlow Map View 50x35 Zoom Use 0% Tactical HUD 1 Map Filters NONE Filters NONE Steam 1 RUN: 2b1565c0-3e04-45d5-be98-5f9d3695af01